bitfinex/quotes_ETHUSD_20250112
["timestamp","ask_amount","ask_price","bid_price","bid_amount"]
[1736692087621,0.7672,3277.3,3276.9,0.55]
[1736692087827,0.07869485,3277.2,3277.0,0.55]
[1736692088030,0.07869485,3277.2,3277.0,2.68609]
[1736692088325,0.7672,3277.6,3277.0,2.68609]
[1736692088761,0.07869485,3277.5,3277.0,2.68609]
[1736692089117,0.07869485,3277.5,3277.2,3.55]
[1736692089355,0.07869485,3277.5,3277.2,4.418598]
[1736692089717,0.7672,3277.8,3277.2,3.554558]
[1736692089929,0.07869485,3277.4,3277.2,2.68596]
[1736692090129,0.7672,3277.8,3277.2,2.68596]
[1736692090359,0.7672,3277.8,3277.4,0.55]
[1736692090525,0.07869485,3277.7,3277.4,3.55]
[1736692090730,0.9856,3278.1,3277.4,3.55]
[1736692091129,0.07869485,3278.0,3277.4,3.55]
[1736692091361,0.11683106,3278.0,3277.1,0.55]
[1736692091532,0.11683106,3278.0,3277.3,0.55]
[1736692091854,2.25227106,3278.0,3277.0,3.0]
[1736692092827,2.25227106,3278.0,3277.1,0.55]
[1736692093151,2.21413485,3278.0,3277.1,0.55]
[1736692093361,0.0381388,3277.9,3277.1,0.55]
[1736692093861,0.0381388,3277.9,3277.1,0.898519]
[1736692094160,0.07869485,3277.8,3277.1,0.898519]
[1736692094314,0.07869485,3277.8,3277.3,0.55]
[1736692094518,0.9856,3278.1,3277.3,0.55]
[1736692094519,0.25513878,3278.0,3277.3,0.55]
[1736692094833,0.217,3278.0,3277.3,0.55]
[1736692095029,0.07869485,3277.9,3277.3,0.55]
[1736692095747,0.11683366,3277.9,3277.3,0.55]
[1736692095947,0.07869485,3277.9,3277.3,0.55]
[1736692096914,0.07869485,3277.9,3277.5,3.55]
[1736692097114,0.07869485,3277.9,3277.5,2.68575]
[1736692098434,0.07869485,3277.9,3277.5,0.55]
[1736692099533,0.07869485,3277.9,3277.1,3.305119]
[1736692099738,0.07869485,3277.9,3277.1,2.9566]
[1736692100046,0.03813766,3277.8,3277.2,0.55]
[1736692100232,0.07934728,3277.7,3277.2,3.55]
[1736692100639,0.7686,3277.6,3277.2,3.55]
[1736692100941,0.07933245,3277.5,3277.4,0.55]
[1736692101134,0.217,3278.0,3277.4,5.68583]
[1736692101339,0.07933245,3277.5,3277.4,3.55]
[1736692101535,0.217,3278.0,3277.4,3.55]
[1736692101854,0.07933245,3277.5,3277.4,3.55]
[1736692102033,0.80673542,3277.9,3277.4,4.183656]
[1736692102227,0.07933245,3277.8,3277.0,2.13605]
[1736692102436,0.7686,3277.7,3276.8,2.13622]
[1736692102622,0.038142,3277.6,3276.8,2.13622]
[1736692102828,0.7686,3277.5,3276.7,0.8206]
[1736692103029,0.03814261,3277.4,3276.5,8.32697]
[1736692103335,0.07933245,3277.3,3276.6,0.832697]
[1736692103537,0.7686,3277.2,3276.5,2.95697]
[1736692104349,0.7686,3277.2,3276.6,3.55]
[1736692104527,0.7686,3277.2,3276.6,2.68635]
[1736692104727,0.7686,3277.2,3276.9,0.55]
[1736692104928,0.7623,3277.8,3277.0,3.55]
[1736692105140,0.07933245,3277.1,3277.0,3.55]
[1736692105342,1.20108796,3277.8,3277.0,3.55]
[1736692105343,0.7623,3277.8,3277.0,3.55]
[1736692105554,0.07933245,3277.1,3277.0,3.55]
[1736692105750,0.9793,3277.8,3277.0,3.55]
[1736692105956,0.9793,3277.8,3277.3,0.55]
[1736692106157,0.07933245,3277.7,3277.3,2.68586]
[1736692106359,0.07933245,3277.7,3277.4,3.0]
[1736692106558,0.7623,3277.8,3277.4,3.0]
[1736692106769,0.07933245,3277.6,3277.4,3.0]
[1736692106970,0.7623,3277.8,3277.4,3.0]
[1736692107154,0.07933245,3277.5,3277.4,3.55]
[1736692107355,0.7623,3277.8,3277.4,4.173586]
[1736692107555,0.07933245,3277.5,3277.4,4.173586]
[1736692107759,0.7623,3277.8,3277.4,4.173586]
[1736692107972,0.7623,3277.8,3277.5,0.55]
[1736692108178,0.7623,3277.8,3277.3,2.13586]
[1736692108345,0.7623,3277.8,3277.2,0.55]
[1736692108874,0.03813741,3277.7,3276.8,6.2001]
[1736692109072,0.7623,3277.6,3276.9,2.75615]
[1736692109376,0.03814135,3277.5,3277.0,0.55]
[1736692109958,0.7623,3277.6,3276.7,0.55]
[1736692110143,0.03814135,3277.5,3276.9,0.55]
[1736692110349,0.7663,3277.4,3276.6,2.13635]
[1736692110550,0.03814391,3277.3,3276.6,2.13635]
[1736692110737,0.03814391,3277.3,3276.7,0.55]
[1736692111334,0.7663,3277.4,3276.7,0.55]
[1736692111540,0.03814403,3277.3,3276.7,0.55]
[1736692111973,0.03814403,3277.3,3276.7,2.68629]
[1736692112135,0.7663,3277.4,3276.7,2.68629]
[1736692112339,0.7663,3277.4,3276.7,3.4488955]
[1736692112561,0.7663,3277.4,3277.1,3.55]
[1736692114077,2.03931962,3277.7,3277.1,2.68598]
[1736692114283,1.27301962,3277.6,3277.1,2.68598]
[1736692114776,2.03931962,3277.7,3277.1,2.68598]
[1736692115162,0.07939919,3277.6,3277.3,0.55]
[1736692115678,1.27301962,3277.8,3277.3,0.55]
[1736692116177,0.07939919,3277.7,3277.3,0.55]
[1736692116882,0.07939919,3277.6,3277.3,0.55]
[1736692117077,0.07939919,3277.6,3277.1,3.0]
[1736692117078,0.03813672,3277.9,3277.1,3.0]
[1736692117294,0.84569919,3277.8,3277.0,2.13607]
[1736692117578,0.84569919,3277.8,3277.1,0.55]
[1736692117955,0.84569919,3277.8,3277.2,0.55]
[1736692118285,0.7663,3277.6,3277.0,0.55]
[1736692118580,0.7663,3277.4,3276.4,8.71086824]
[1736692118751,0.7663,3277.4,3276.7,0.55]
[1736692119158,0.07939919,3277.3,3276.6,0.55]
[1736692119469,0.7663,3277.4,3276.8,0.55]
[1736692119688,0.07939919,3277.3,3276.8,0.55]
[1736692121898,0.07939919,3277.3,3276.9,0.55]
[1736692122062,0.11754376,3277.3,3276.9,0.55]
[1736692122257,0.07939919,3277.3,3276.9,0.55]
[1736692122889,0.11754376,3277.3,3276.9,0.55]
[1736692123105,0.07939919,3277.3,3276.9,0.55]
[1736692123406,0.11754376,3277.3,3276.9,0.55]
[1736692123586,0.07939919,3277.3,3276.9,0.55]
[1736692124099,0.9833,3277.2,3276.4,7.50644]
[1736692124301,0.0381461,3277.1,3276.4,2.13644]
[1736692124478,0.07873192,3277.1,3276.4,2.13644]
[1736692124879,0.07873192,3277.1,3276.5,0.55]
[1736692125299,0.11687927,3277.1,3276.5,0.55]
[1736692127005,0.11687927,3277.1,3276.1,2.13667]
[1736692127006,0.7912,3276.9,3276.1,2.13667]
[1736692127302,0.7912,3276.9,3275.7,7.50692]
[1736692127303,0.11672909,3276.8,3275.9,2.13679]
[1736692127504,0.07857619,3276.8,3276.0,3.55]
[1736692127705,0.7912,3276.7,3276.0,3.55]
[1736692127884,0.7912,3276.7,3275.8,3.55]
[1736692128069,0.07857619,3276.6,3276.0,2.68672]
[1736692128265,0.0381526,3276.6,3276.0,2.68672]
[1736692128599,0.7912,3276.7,3276.0,2.68672]
[1736692128995,0.11672909,3276.6,3276.0,2.68672]
[1736692129198,0.07857619,3276.6,3276.0,2.68672]
[1736692129383,0.11672909,3276.6,3276.0,2.68672]
[1736692129580,0.11672909,3276.6,3276.0,0.55]
[1736692129786,0.07857619,3276.6,3276.0,3.13093]
[1736692129974,0.11672909,3276.6,3276.0,3.13093]
[1736692130512,0.07857619,3276.6,3276.0,3.13093]
[1736692131072,0.07857619,3276.6,3276.3,0.55]
[1736692131309,0.07857619,3276.6,3276.3,3.55]
[1736692131676,0.07857619,3276.6,3276.3,3.336856]
[1736692132286,0.07857619,3276.6,3276.5,5.68642]
[1736692132511,2.10601962,3277.0,3276.6,3.55]
[1736692132679,2.10601962,3277.0,3276.6,0.55]
[1736692133275,0.03814616,3276.9,3276.1,0.8168]
[1736692133519,0.833,3276.8,3276.1,2.13665]
[1736692133877,0.833,3276.8,3276.0,0.55]
[1736692134081,0.833,3276.8,3276.2,0.55]
[1736692134283,0.833,3276.8,3276.1,0.55]
[1736692134821,0.833,3276.8,3276.2,0.55]
[1736692134982,0.833,3276.8,3276.4,3.55]
[1736692136276,0.833,3276.8,3276.4,2.68646]
[1736692136816,0.833,3276.8,3276.6,0.55]
[1736692137720,0.833,3276.8,3276.1,2.13663]
[1736692138685,0.833,3276.8,3276.2,3.55]
[1736692139018,0.833,3276.8,3276.2,4.418663]
[1736692140288,0.833,3276.8,3276.5,3.55]
[1736692140488,0.07795321,3276.7,3276.5,3.55]
[1736692140690,0.833,3276.8,3276.5,3.55]
[1736692141214,0.07795321,3276.7,3276.5,3.55]
[1736692141412,0.07795321,3276.7,3276.3,3.0]
[1736692141713,0.03814979,3276.7,3276.0,2.13672]
[1736692141908,0.8257,3276.6,3276.1,0.302872]
[1736692142107,0.03815309,3276.5,3275.8,2.13686]
[1736692142317,0.03815309,3276.5,3275.9,0.55]
[1736692142604,0.03815309,3276.5,3275.9,3.55]
[1736692142826,0.07795321,3276.4,3275.9,3.55]
[1736692143225,0.07795321,3276.4,3275.9,2.6868]
[1736692143525,0.03815333,3276.5,3276.1,0.55]
[1736692143891,0.07795321,3276.4,3276.1,0.55]
[1736692144095,0.8257,3276.8,3276.4,0.55]
[1736692144310,0.07795321,3276.7,3276.4,3.55]
[1736692144627,0.8257,3276.8,3276.4,3.55]
[1736692144925,0.8257,3276.8,3276.4,2.13648]
[1736692145127,0.07795321,3276.7,3276.5,0.55]
[1736692145491,0.8257,3276.8,3276.5,0.55]
[1736692145872,0.07795321,3276.7,3276.5,0.55]
[1736692146124,0.8257,3276.8,3276.5,0.55]
[1736692146519,0.07795321,3276.7,3276.5,0.55]
[1736692146715,0.07795321,3276.7,3276.6,3.55]
[1736692146919,0.7605,3277.0,3276.7,0.55]
[1736692147103,0.7605,3277.0,3276.2,3.7904]
[1736692147307,1.27301962,3277.2,3277.0,2.13608]
[1736692147632,1.27301962,3277.2,3277.1,0.55]
[1736692147830,1.27301962,3277.2,3277.1,3.55]
[1736692148019,1.27301962,3277.2,3277.1,4.197648]
[1736692148216,3.30802537,3277.5,3277.1,1.197648]
[1736692148409,0.7605,3277.5,3277.1,2.68603]
[1736692148604,0.7605,3277.5,3277.3,0.55]
[1736692148960,1.27301962,3277.7,3277.3,2.68589]
[1736692149255,0.8203,3277.8,3277.0,0.55]
[1736692149558,0.8203,3277.8,3277.4,0.55]
[1736692149753,0.8203,3277.8,3277.4,2.68582]
[1736692150049,0.7998,3278.0,3277.4,2.68582]
[1736692150211,0.7998,3278.0,3277.4,3.44032]
[1736692150710,0.83793555,3278.0,3277.3,3.0]
[1736692151073,0.83793555,3278.0,3277.2,2.13595]
[1736692151618,0.83793555,3278.0,3277.3,0.55]
[1736692151833,1.13526511,3278.0,3277.3,0.55]
[1736692152068,0.7998,3277.9,3277.0,0.7545]
[1736692152254,0.0381397,3277.8,3277.0,2.89059]
[1736692152865,0.0381397,3277.8,3277.1,3.55]
[1736692153029,0.7998,3277.7,3276.9,2.1361]
[1736692153230,0.03814017,3277.6,3276.7,2.89073]
[1736692153534,0.7998,3277.5,3276.5,8.2609]
[1736692153742,2.39122719,3277.6,3276.6,3.55]
[1736692153743,0.7998,3277.3,3276.6,3.55]
[1736692153911,0.03814407,3277.2,3276.6,5.68634]
[1736692154612,0.03814407,3277.2,3276.5,0.7545]
[1736692154819,0.7998,3277.1,3276.4,2.13646]
[1736692155031,0.7998,3277.1,3276.5,0.55]
[1736692155231,0.07867256,3277.0,3276.5,3.55]
[1736692155428,0.11681897,3277.0,3276.1,0.7545]
[1736692155630,0.7998,3276.9,3276.0,2.7054]
[1736692155967,0.03815029,3276.8,3275.8,2.89133]
[1736692156180,0.7998,3276.7,3275.8,2.89133]
[1736692156338,0.03815353,3276.6,3275.8,2.89133]
[1736692156534,0.03815353,3276.6,3275.9,0.55]
[1736692156758,0.03815353,3276.6,3275.6,2.137]
[1736692156927,0.7998,3276.4,3275.6,2.60395682]
[1736692157142,0.03815496,3276.3,3275.6,2.137]
[1736692157451,0.03815496,3276.3,3275.4,5.42419824]
[1736692157650,0.03815496,3276.3,3275.4,2.89163]
[1736692157951,0.07813123,3276.2,3275.4,2.89163]
[1736692158127,0.07813123,3276.2,3275.5,0.289163]
[1736692158328,0.03815496,3276.3,3275.6,0.55]
[1736692158727,0.0778716,3276.2,3275.6,0.55]
[1736692158933,0.0778716,3276.2,3275.8,3.55]
[1736692159128,0.0778716,3276.2,3275.8,5.68687]
[1736692159345,0.7998,3276.4,3276.0,0.55]
[1736692159542,0.07739684,3276.1,3275.9,0.55]
[1736692159727,0.7998,3276.4,3276.0,0.55]
[1736692159928,0.7998,3276.4,3275.7,2.13693]
[1736692160116,0.0774191,3276.3,3275.8,3.55]
[1736692160323,0.11557232,3276.3,3275.8,0.55]
[1736692160736,0.11557232,3276.3,3275.6,3.0]
[1736692160935,0.11557232,3276.3,3275.5,2.13705]
[1736692161120,0.11557232,3276.3,3275.6,0.55]
[1736692161661,0.0774191,3276.3,3275.6,2.13698]
[1736692161856,0.0774191,3276.3,3275.7,0.55]
[1736692162558,0.0774191,3276.3,3275.9,0.55]
[1736692162721,0.0774191,3276.3,3275.9,3.55]
[1736692163859,0.0774191,3276.3,3275.9,2.13675]
[1736692164177,0.0774191,3276.3,3276.1,3.55]
[1736692164350,0.0774191,3276.3,3276.1,4.118675]
[1736692165238,0.0774191,3276.3,3276.1,3.55]
[1736692165596,0.11557069,3276.3,3276.0,0.55]
[1736692165802,0.0774191,3276.3,3276.0,0.55]
[1736692165959,0.0774191,3276.3,3275.8,0.55]
[1736692166300,0.11557338,3276.3,3275.8,0.55]
[1736692166440,0.0774191,3276.3,3275.8,0.268694]
[1736692166642,0.11557337,3276.3,3275.6,2.137]
[1736692167053,0.11557337,3276.3,3275.7,0.55]
[1736692167258,0.0774191,3276.3,3275.9,0.55]
[1736692167676,0.0774191,3276.3,3275.5,0.55]
[1736692167858,0.0774191,3276.3,3275.9,0.55]
[1736692168053,0.11557416,3276.3,3275.9,0.55]
[1736692168275,0.0774191,3276.3,3275.9,0.55]
[1736692169320,0.0774191,3276.3,3275.9,2.68681]
[1736692170234,0.0774191,3276.3,3276.1,0.55]
[1736692174042,0.0774191,3276.3,3276.2,3.55]
[1736692174198,0.0774191,3276.3,3276.2,2.68662]
[1736692174401,0.83114907,3276.8,3276.3,0.55]
[1736692174716,0.07577083,3276.7,3276.3,0.55]
[1736692174912,0.83114907,3276.8,3276.3,0.55]
[1736692175239,0.07577083,3276.7,3276.3,0.55]
[1736692175600,0.793,3276.8,3276.3,2.13654]
[1736692175837,0.07577083,3276.6,3276.4,0.55]
[1736692176142,0.07577083,3276.5,3276.4,0.55]
[1736692176503,0.793,3276.8,3276.4,0.55]
[1736692176806,0.07590436,3276.7,3276.4,0.55]
[1736692177143,0.793,3276.8,3276.4,0.55]
[1736692177441,0.07591178,3276.6,3276.5,3.55]
[1736692177643,0.793,3276.8,3276.6,0.55]
[1736692178145,0.07590436,3276.7,3276.4,0.55]
[1736692178451,0.07590436,3276.7,3276.6,2.68636]
[1736692178643,0.83114599,3277.1,3276.7,3.55]
[1736692179138,0.793,3277.1,3276.7,3.55]
[1736692180855,0.793,3277.1,3276.8,0.55]
[1736692181454,0.793,3277.4,3276.8,0.55]
[1736692181748,0.793,3277.4,3276.6,3.55]
[1736692181953,0.793,3277.4,3276.9,3.55]
[1736692182154,0.793,3277.4,3277.0,0.55]
[1736692183329,0.793,3277.4,3277.1,3.55]
[1736692184827,0.793,3277.7,3277.1,2.68603]
[1736692185348,0.793,3277.7,3277.1,3.029693]
[1736692185558,0.83113933,3277.7,3277.1,3.029693]
[1736692186146,0.793,3277.7,3277.1,3.029693]
[1736692186948,0.0381393,3277.6,3277.1,3.029693]
[1736692187341,0.793,3277.7,3277.1,3.029693]
[1736692187536,0.0381393,3277.6,3276.5,0.55]
[1736692187728,0.0381393,3277.6,3276.8,2.13616]
[1736692187928,0.0381393,3277.6,3276.9,0.55]
[1736692187929,0.07686864,3277.5,3276.9,0.55]
[1736692188124,0.07686864,3277.5,3277.1,0.55]
[1736692188348,0.7605,3277.4,3276.5,2.13641]
[1736692188540,0.79864419,3277.3,3276.5,3.88975945]
[1736692188725,0.79864419,3277.3,3276.6,2.13635]
[1736692189139,0.79864419,3277.3,3276.6,0.55]
[1736692189340,0.79864419,3277.3,3276.6,3.55]
[1736692189845,0.79864419,3277.3,3276.8,0.55]
[1736692190056,0.07686864,3277.2,3276.8,0.55]
[1736692190429,0.7605,3277.3,3276.8,0.55]
[1736692190653,0.07686864,3277.1,3276.8,0.55]
[1736692190859,0.7605,3277.3,3276.8,0.55]
[1736692191092,0.07686864,3277.0,3276.8,0.55]
[1736692191370,0.07686864,3276.9,3276.8,0.55]
[1736692191574,0.84536864,3276.9,3276.5,3.88975945]
[1736692191729,0.7685,3276.9,3276.6,0.95780226]
[1736692192171,0.7685,3276.9,3276.5,3.0]
[1736692193270,0.7685,3276.9,3276.6,0.55]
[1736692193772,0.07686864,3276.8,3276.6,0.55]
[1736692194335,0.07686864,3276.8,3276.5,2.68641]
[1736692194535,0.7685,3276.9,3276.7,0.55]
[1736692194751,0.07686864,3276.8,3276.7,0.55]
[1736692194954,0.07686864,3276.8,3276.7,6.254931]
[1736692195418,0.7685,3277.2,3276.9,0.55]
[1736692196013,0.07693537,3277.1,3276.8,0.55]
[1736692199669,0.7685,3277.2,3276.8,0.55]
[1736692200059,0.07693537,3277.1,3276.8,0.55]
[1736692201094,0.07693537,3277.1,3276.8,3.030349]
[1736692201268,0.07693537,3277.1,3276.8,0.894129]
[1736692201593,0.07693537,3277.1,3277.0,3.55]
[1736692203691,0.07693537,3277.1,3276.7,0.755]
[1736692203692,0.07693537,3277.1,3276.7,2.13628]
[1736692204822,0.07693537,3277.1,3276.8,3.55]
[1736692208617,0.07693537,3277.1,3276.8,0.55]
[1736692208790,0.07693537,3277.1,3277.0,2.1361]
[1736692208996,0.07693537,3277.1,3277.0,6.95841]
[1736692213744,0.07693537,3277.1,3277.0,3.51361]
[1736692213887,0.07693537,3277.1,3276.9,5.37]
[1736692214222,0.07693537,3277.1,3276.4,2.53256824]
[1736692214607,0.07693537,3277.1,3276.5,3.55]
[1736692214928,0.07693537,3277.1,3276.6,2.13635]
[1736692215124,0.07693537,3277.1,3276.4,2.53256824]
[1736692215424,0.07693537,3277.1,3276.5,0.55]
[1736692215795,0.8294,3277.0,3276.2,0.8206]
[1736692215996,0.03814598,3276.9,3276.0,5.37]
[1736692216185,0.8294,3276.8,3276.1,5.13666]
[1736692216635,0.8294,3276.8,3276.2,2.68661]
[1736692216927,0.8294,3276.8,3276.4,0.55]
[1736692217130,0.90633537,3277.1,3276.4,0.55]
[1736692217287,0.90633537,3277.1,3276.5,0.55]
[1736692217488,0.90633537,3277.1,3276.8,0.55]
[1736692217729,0.07693537,3277.1,3277.0,0.55]
[1736692218914,0.07693537,3277.1,3277.0,5.954716]
[1736692220836,0.07693537,3277.1,3277.0,3.55]
[1736692221162,0.90633537,3277.1,3277.0,3.0]
[1736692221435,0.07693537,3277.1,3277.0,3.55]
[1736692222731,0.07693537,3277.1,3277.0,5.6861]
[1736692224329,0.07693537,3277.1,3277.0,3.55]
[1736692224645,0.07693537,3277.1,3276.6,2.95696]
[1736692225023,0.07693537,3277.1,3276.9,0.55]
[1736692225221,0.07693537,3277.1,3277.0,3.55]
[1736692225424,0.07693537,3277.1,3277.0,5.6861]
[1736692226233,0.07693537,3277.1,3277.0,3.55]
[1736692226897,0.07693537,3277.1,3277.0,5.6861]
[1736692227115,0.07693537,3277.1,3277.0,3.55]
[1736692228528,0.07693537,3277.1,3277.0,4.118614]
[1736692229995,0.07693537,3277.1,3277.0,6.254714]
[1736692230333,0.07693537,3277.1,3277.0,7.028914]
[1736692233259,0.07693537,3277.1,3277.0,6.4603]
[1736692233500,0.07693537,3277.1,3277.0,5.6861]
[1736692233701,0.07693537,3277.1,3277.0,5.1361]
[1736692234060,0.07693537,3277.1,3277.0,3.0]
[1736692234264,0.07693537,3277.1,3277.0,3.55]
[1736692236313,0.07693537,3277.1,3277.0,5.6861]
[1736692238304,0.785,3277.5,3277.1,3.55]
[1736692238695,0.07758788,3277.4,3277.1,3.55]
[1736692239703,0.07758788,3277.4,3276.9,3.0]
[1736692240001,0.11572802,3277.4,3276.9,3.0]
[1736692241105,0.07758788,3277.4,3276.9,2.13616]
[1736692242330,0.29496281,3277.4,3276.9,2.13616]
[1736692243272,0.29496281,3277.4,3276.8,0.55]
[1736692243472,0.29496281,3277.4,3276.8,2.6862]
[1736692244267,0.29496281,3277.4,3276.8,2.1362]
[1736692244517,0.29496281,3277.4,3276.9,0.55]
[1736692245196,0.03814204,3277.3,3276.9,0.55]
[1736692245425,0.07747666,3277.2,3276.9,0.55]
[1736692245606,2.05801962,3277.5,3276.9,0.55]
[1736692245807,0.07747666,3277.4,3276.9,0.55]
[1736692247683,0.11561868,3277.4,3276.9,0.55]
[1736692247890,0.7663,3277.3,3276.9,0.55]
[1736692248637,0.7663,3277.1,3276.5,5.1364]
[1736692248842,0.7663,3277.1,3276.6,0.55]
[1736692249328,0.07718011,3277.0,3276.6,0.55]
[1736692250011,0.07718011,3277.0,3276.6,2.68635]
[1736692251842,0.07718011,3277.0,3276.8,0.55]
[1736692252948,0.07718011,3277.0,3276.9,2.68616]
[1736692253310,2.05381962,3277.4,3277.0,3.55]
[1736692253753,0.7808,3277.4,3277.0,3.55]
[1736692254634,0.7808,3277.4,3276.9,0.55]
[1736692255145,0.7808,3277.2,3276.5,5.13639]
[1736692255516,0.7808,3277.2,3276.6,0.55]
[1736692256622,0.7808,3277.2,3276.8,0.55]
[1736692259313,0.7808,3277.2,3276.7,2.13623]
[1736692259513,0.7808,3277.2,3276.8,0.55]
[1736692260207,0.7808,3277.2,3276.5,5.1364]
[1736692260615,0.7808,3277.2,3276.6,0.55]
[1736692261236,0.07711337,3277.1,3276.6,0.55]
[1736692262152,0.07711337,3277.1,3276.6,2.68634]
[1736692262356,0.07711337,3277.1,3276.8,0.55]
[1736692263240,0.07711337,3277.1,3276.7,0.55]
[1736692263439,0.07711337,3277.1,3276.9,0.55]
[1736692264748,0.07711337,3277.1,3276.9,3.55]
[1736692266017,0.07711337,3277.1,3277.0,0.55]
[1736692266216,2.02621962,3277.5,3277.0,0.55]
[1736692266467,0.07697987,3277.1,3277.0,0.55]
[1736692266669,2.02621962,3277.5,3277.0,0.55]
[1736692266833,0.07697987,3277.1,3277.0,0.55]
[1736692267163,2.02621962,3277.5,3277.0,0.899716]
[1736692267315,1.27301962,3277.5,3277.3,3.55]
[1736692267716,1.27301962,3277.6,3277.3,3.55]
[1736692268020,1.27301962,3277.6,3277.4,0.55]
[1736692268219,1.27301962,3277.6,3277.5,2.13577]
[1736692268420,1.27301962,3277.8,3277.6,0.55]
[1736692268673,1.27301962,3277.8,3277.7,5.68564]
[1736692269720,1.27301962,3278.2,3277.8,5.68555]
[1736692270032,1.27301962,3278.2,3278.0,3.55]
[1736692270244,0.8266,3278.5,3278.0,3.55]
[1736692271439,0.8266,3278.5,3277.6,4.0281]
[1736692271632,0.8266,3278.5,3277.7,0.48391]
[1736692272270,0.8266,3278.5,3277.8,0.55]
[1736692272774,0.8266,3278.3,3277.4,5.37]
[1736692272993,0.0381342,3278.2,3277.4,5.37]
[1736692273199,0.8266,3278.1,3277.4,5.37]
[1736692273490,0.03813574,3278.0,3277.6,0.55]
[1736692273696,0.03813574,3278.0,3277.1,3.0]
[1736692273972,0.90360212,3277.9,3276.8,2.13621]
[1736692274173,0.8266,3277.7,3276.9,1.00387782]
[1736692274351,0.03813995,3277.6,3276.9,1.00387782]
[1736692274549,0.03813995,3277.6,3277.0,0.55]
[1736692274759,0.03813995,3277.6,3276.9,1.00387782]
[1736692274965,0.8266,3277.5,3276.6,6.24443224]
[1736692275146,0.8266,3277.5,3276.6,0.805634]
[1736692275147,0.03814281,3277.4,3276.6,0.805634]
[1736692275485,0.11514493,3277.4,3276.6,0.805634]
[1736692275682,0.11514493,3277.4,3276.6,3.805634]
[1736692276040,0.07700212,3277.4,3276.7,0.55]
[1736692276249,0.07700212,3277.4,3276.9,3.55]
[1736692276498,0.07700212,3277.4,3277.0,0.568622]
[1736692276704,0.07700212,3277.4,3277.1,3.55]
[1736692277060,0.07700212,3277.4,3277.0,0.55]
[1736692277261,2.73724402,3278.0,3277.4,3.0]
[1736692277462,2.73724402,3278.0,3277.5,0.55]
[1736692277661,0.8266,3278.0,3277.5,0.55]
[1736692277868,2.73724402,3278.3,3277.7,2.68562]
[1736692278161,0.8266,3278.3,3277.7,3.55]
[1736692278485,0.8266,3278.3,3277.9,0.55]
[1736692279045,0.8266,3278.3,3277.9,3.55]
[1736692279424,0.219,3278.5,3277.9,4.118557]
[1736692279545,0.25712993,3278.5,3277.9,3.55]
[1736692279750,0.03812993,3278.5,3277.9,3.55]
[1736692280549,0.03812889,3278.5,3277.9,3.55]
[1736692281183,0.03812889,3278.5,3277.7,0.55]
[1736692281415,0.03812889,3278.5,3277.7,2.68563]
[1736692281572,0.03812889,3278.5,3277.7,3.2887502]
[1736692281777,0.8266,3278.6,3278.0,0.55]
[1736692282089,0.0381288,3278.5,3278.0,0.55]
[1736692283001,0.8266,3278.6,3277.8,3.55]
[1736692283176,0.03812885,3278.5,3277.8,0.55]
[1736692283576,0.03812885,3278.5,3277.7,2.68564]
[1736692283788,0.03812885,3278.5,3277.7,3.8257612]
[1736692288277,0.03812885,3278.5,3277.9,0.55]
[1736692289503,0.03812885,3278.5,3277.8,0.55]
[1736692289666,0.86473002,3278.6,3278.0,0.55]
[1736692290908,0.8266,3278.6,3278.0,0.55]
[1736692291080,0.07856632,3278.5,3278.0,3.55]
[1736692292116,0.07856632,3278.5,3278.0,3.25396]
[1736692292465,0.8266,3278.6,3278.0,3.25396]
[1736692292711,0.07856632,3278.4,3278.0,2.68541]
[1736692292924,0.8266,3278.6,3278.0,2.68541]
[1736692293083,0.07856632,3278.3,3278.0,2.68541]
[1736692293417,0.8266,3278.6,3278.0,2.68541]
[1736692294003,0.07858855,3278.5,3278.0,2.68541]
[1736692295378,0.07858855,3278.5,3278.0,3.030701]
[1736692296193,0.07858855,3278.5,3278.0,0.895291]
[1736692296394,0.07858855,3278.5,3278.0,0.55]
[1736692296681,0.8266,3278.6,3278.0,2.68543]
[1736692296882,0.85511157,3278.9,3278.3,0.7675]
[1736692296883,0.7805,3278.9,3278.3,0.7675]
[1736692297117,2.55905663,3279.5,3278.8,0.7675]
[1736692297118,3.33955663,3279.5,3278.8,0.7675]
[1736692297325,3.33955663,3279.5,3279.1,0.55]
[1736692297619,2.55905663,3279.5,3279.3,5.6846]
[1736692298325,1.91929247,3279.9,3279.4,0.55]
[1736692298481,1.95740512,3279.9,3279.4,0.55]
[1736692298681,1.91929247,3279.9,3279.7,3.0]
[1736692298916,1.91929247,3279.9,3279.8,5.68427]
[1736692299297,1.32679843,3280.5,3280.0,0.55]
[1736692299644,0.81860594,3280.5,3280.0,0.55]
[1736692299926,0.81860594,3280.5,3279.9,0.55]
[1736692300427,2.95242594,3280.5,3279.4,5.13451]
[1736692300582,0.31704259,3280.4,3279.4,5.13451]
[1736692300784,0.03811035,3280.3,3279.5,0.55]
[1736692301794,0.7805,3280.2,3279.5,0.55]
[1736692302002,0.81861242,3280.2,3279.5,0.55]
[1736692302625,0.81861242,3280.2,3279.4,0.55]
[1736692302788,0.0797071,3280.1,3279.4,0.55]
[1736692302990,0.7805,3279.9,3279.0,5.37]
[1736692303291,0.7805,3279.7,3279.0,5.37]
[1736692303484,0.03811743,3279.6,3279.1,3.55]
[1736692305390,0.7805,3279.7,3279.1,3.55]
[1736692305591,0.7805,3279.7,3279.1,5.68467]
[1736692306634,0.7652,3280.0,3279.3,0.55]